bitfinex/quotes_ETHUSD_20250801
["timestamp","ask_amount","ask_price","bid_price","bid_amount"]
[1754007117435,4.498,3683.5,3682.0,0.44910223]
[1754007117648,30.0,3683.3,3682.0,0.00620223]
[1754007117852,0.03393788,3683.2,3682.0,0.00620223]
[1754007117990,0.4553,3683.1,3682.0,0.00620223]
[1754007118834,0.136,3682.3,3682.0,0.00620223]
[1754007119403,0.136,3682.5,3682.0,0.44910223]
[1754007119611,0.136,3682.5,3682.0,0.14220223]
[1754007119825,7.21506409,3683.2,3682.0,0.00620223]
[1754007119826,0.4553,3682.9,3682.0,0.00620223]
[1754007120013,0.136,3682.1,3682.0,0.00620223]
[1754007120307,0.4553,3682.9,3682.0,0.00620223]
[1754007120629,2.71480241,3683.6,3682.0,0.00620223]
[1754007120630,2.71467544,3683.7,3682.0,1.59790223]
[1754007120829,2.71481162,3683.5,3682.0,0.44910223]
[1754007121005,2.71501639,3683.3,3682.0,0.44910223]
[1754007121210,0.03393603,3683.4,3682.0,0.44910223]
[1754007121211,0.48923603,3683.4,3682.0,0.44910223]
[1754007121550,0.03369278,3683.3,3682.0,0.00620223]
[1754007121698,0.4553,3683.2,3682.0,0.00620223]
[1754007122203,0.0339388,3683.1,3682.0,0.00620223]
[1754007122404,0.816319,3683.3,3682.1,0.4429]
[1754007123352,1.6879,3683.2,3682.0,0.00620223]
[1754007123705,0.4553,3683.2,3682.0,0.00620223]
[1754007123922,0.816319,3683.3,3682.1,0.4429]
[1754007124306,0.816319,3683.3,3682.2,2.71571209]
[1754007124633,4.505,3684.0,3682.0,1.15500223]
[1754007124634,0.00585021,3683.2,3682.5,0.55]
[1754007124835,0.00585021,3683.2,3682.1,4.504]
[1754007125135,0.00585021,3683.2,3682.1,0.55]
[1754007125136,0.46115021,3683.2,3682.1,0.55]
[1754007125359,0.0339388,3683.1,3682.0,0.00620223]
[1754007125515,0.00585021,3683.0,3682.3,2.7156333]
[1754007125722,0.00585021,3683.0,3682.0,0.00620223]
[1754007126021,0.4553,3682.9,3682.0,0.00620223]
[1754007126196,0.00585021,3682.8,3682.0,0.00620223]
[1754007126603,0.48924248,3682.7,3682.0,0.00620223]
[1754007126847,0.00585021,3682.6,3682.0,0.00620223]
[1754007127143,1.68017396,3682.7,3682.0,0.00620223]
[1754007127312,0.03394433,3682.5,3682.0,0.00620223]
[1754007127511,4.2326,3682.4,3682.0,0.00620223]
[1754007127711,1.26654617,3682.3,3682.0,0.00620223]
[1754007127922,1.26654617,3682.3,3680.8,10.0]
[1754007127923,3.0,3682.1,3680.8,10.0]
[1754007128124,30.0,3681.8,3680.8,10.0]
[1754007128326,0.0339517,3681.7,3680.8,10.0]
[1754007128537,1.2326,3681.8,3680.8,10.0]
[1754007128708,3.0,3681.4,3680.8,9.95]
[1754007128906,4.505,3682.0,3680.8,9.95]
[1754007128907,3.0,3681.0,3680.8,9.95]
[1754007129137,4.6879,3680.9,3680.8,9.95]
[1754007129342,0.4553,3680.9,3680.8,9.95]
[1754007129544,0.4553,3681.3,3680.4,0.15163732]
[1754007130049,30.03395631,3681.2,3680.4,0.05163732]
[1754007130340,0.136,3680.5,3680.4,0.05163732]
[1754007130573,3.0,3680.1,3680.0,103.06709]
[1754007130704,2.71805604,3679.1,3679.0,10.06862948]
[1754007130903,34.54195604,3679.1,3679.0,9.74331539]
[1754007131133,34.54195604,3679.1,3679.0,5.97413882]
[1754007131356,34.40595604,3679.1,3679.0,4.24718515]
[1754007131538,31.6879,3679.1,3679.0,4.24718515]
[1754007131742,2.71812992,3679.0,3677.1,10.0]
[1754007131931,30.0,3678.8,3677.1,5.7487]
[1754007132138,32.862,3677.8,3677.1,5.7487]
[1754007132365,35.58146045,3677.2,3677.1,5.7487]
[1754007132546,37.66146045,3677.2,3677.1,5.7487]
[1754007132885,35.71946045,3677.2,3677.1,1e-08]
[1754007133030,35.72005222,3676.4,3676.3,0.15292239]
[1754007133379,37.953,3676.4,3676.3,0.15292239]
[1754007133528,37.953,3676.4,3675.3,0.52249129]
[1754007133529,30.0,3676.2,3675.3,0.52249129]
[1754007133733,3.0,3675.7,3675.3,0.52249129]
[1754007133953,33.0,3675.4,3675.3,0.52249129]
[1754007134124,38.411,3675.4,3675.3,0.52249129]
[1754007134529,3.0,3675.8,3675.3,0.52249129]
[1754007134728,0.160932,3677.2,3675.3,0.52249129]
[1754007135004,5.588,3677.1,3675.4,1.5917]
[1754007135173,2.72101439,3675.1,3675.0,1e-08]
[1754007135333,5.297,3677.2,3675.0,1e-08]
[1754007135527,5.852,3678.5,3675.0,1e-08]
[1754007135768,30.0,3678.4,3675.2,3.0]
[1754007135972,30.0,3678.3,3675.0,1e-08]
[1754007136142,5.883,3679.0,3675.9,3.0]
[1754007136354,30.0,3679.9,3675.9,3.0]
[1754007136549,30.0,3679.9,3676.4,3.0]
[1754007136887,30.0,3679.7,3676.6,3.0]
[1754007137040,0.03397108,3679.6,3676.6,3.0]
[1754007137382,13.5648,3680.0,3676.7,1.7679]
[1754007137383,30.0,3679.4,3676.7,1.7679]
[1754007137569,2.71822225,3678.9,3676.7,1.7679]
[1754007137775,30.0,3678.6,3676.7,1.7679]
[1754007137943,30.0,3678.4,3676.7,1.7679]
[1754007138143,3.0,3678.1,3676.7,1.7679]
[1754007138455,30.0,3677.9,3676.7,1.7679]
[1754007138791,30.0,3678.0,3676.7,1.7679]
[1754007138993,3.817629,3678.1,3676.7,1.7679]
[1754007139193,3.817629,3678.1,3676.3,5.929]
[1754007139194,0.817629,3678.1,3676.9,3.0]
[1754007139396,0.817629,3678.1,3677.3,2.71936854]
[1754007139707,1.1488,3679.8,3677.2,3.0]
[1754007140011,0.817277,3678.6,3677.3,1.7679]
[1754007140174,0.817277,3678.6,3677.6,2.71916467]
[1754007140372,0.817277,3678.6,3677.4,5.916]
[1754007140578,0.817277,3678.6,3677.7,4.48697827]
[1754007140899,0.817277,3678.6,3677.8,2.71900388]
[1754007141199,2.71728044,3680.2,3677.7,1.7679]
[1754007141200,0.136,3678.8,3678.1,0.136]
[1754007141361,30.0,3680.7,3678.8,2.71826913]
[1754007141561,0.136,3679.5,3678.9,1.7679]
[1754007141756,0.24564915,3679.4,3678.9,1.7679]
[1754007141962,0.24564915,3679.3,3679.0,1.7679]
[1754007142215,0.136,3679.5,3678.8,6.028]
[1754007142216,0.24564915,3679.2,3679.1,1.7679]
[1754007142697,0.24564915,3679.2,3679.1,4.62195604]
[1754007142895,30.0,3681.9,3679.1,1.9039]
[1754007143079,0.136,3680.4,3679.9,0.136]
[1754007143285,0.03396462,3680.3,3679.4,0.4344]
[1754007143600,0.136,3679.8,3679.4,0.4344]
[1754007143797,0.817107,3679.6,3679.5,1.7679]
[1754007143998,0.817107,3679.6,3676.9,2.71961356]
[1754007144175,0.136,3679.1,3678.5,0.136]
[1754007144498,0.24538504,3679.4,3678.5,0.136]
[1754007144699,0.136,3679.0,3678.0,0.4344]
[1754007145013,0.27935889,3679.3,3677.5,0.136]
[1754007145014,0.136,3678.1,3677.5,0.136]
[1754007145171,0.136,3678.1,3677.0,0.136]
[1754007145172,0.136,3677.5,3677.0,0.136]
[1754007145366,0.0339914,3677.4,3676.1,5.866]
[1754007145566,0.03399233,3677.3,3675.6,0.4344]
[1754007145764,0.03399233,3677.3,3675.0,0.20169323]
[1754007145765,30.0,3675.9,3675.0,1e-08]
[1754007146067,0.136,3675.1,3675.0,1e-08]
[1754007146266,32.85701439,3675.1,3675.0,1e-08]
[1754007146500,37.67091439,3675.1,3675.0,1e-08]
[1754007146801,3.0,3674.7,3672.6,0.4344]
[1754007147004,0.136,3673.6,3673.0,0.136]
[1754007147371,2.72080628,3675.4,3673.5,11.7679]
[1754007147372,30.0,3675.1,3673.5,11.7679]
[1754007147610,0.136,3673.9,3673.5,11.7679]
[1754007147781,30.0,3675.1,3673.6,1.7679]
[1754007148136,0.136,3674.0,3673.5,10.136]
[1754007148280,30.0,3673.8,3673.5,10.0]
[1754007148481,2.72027795,3676.1,3673.5,10.0]
[1754007148698,15.3090078,3685.5,3673.5,10.0]
[1754007148699,30.0,3674.3,3673.5,10.0]
[1754007149679,0.4635,3674.4,3673.5,10.0]
[1754007149875,0.03402008,3674.3,3673.5,10.0]
[1754007150086,7.6665,3674.2,3673.5,10.0]
[1754007150391,30.0,3673.8,3673.5,10.0]
[1754007150599,30.0,3673.6,3673.5,10.0]
[1754007150825,3.0,3674.0,3673.5,10.0]
[1754007151030,3.0,3673.6,3673.5,10.0]
[1754007151259,0.4635,3673.6,3670.5,2.3335]
[1754007151534,2.862,3672.6,3670.6,1.42]
[1754007151683,0.03403675,3672.5,3670.6,2.7535]
[1754007152018,3.0040463,3673.5,3670.7,1.7679]
[1754007152019,30.0,3673.0,3670.7,1.7679]
[1754007152321,30.0,3673.4,3670.9,3.0]
[1754007152621,0.6055463,3673.5,3671.0,1.3335]
[1754007152783,30.0,3673.3,3671.0,4.05752859]
[1754007152983,0.49753027,3673.2,3671.1,1.3335]
[1754007153208,30.0,3672.3,3670.5,1.0]
[1754007153518,3.0,3672.0,3670.5,1.0]
[1754007153721,9.51353954,3672.2,3670.5,1.0]
[1754007153722,3.0,3671.4,3670.5,1.0]
[1754007154021,3.0,3670.9,3670.5,1.0]
[1754007154182,3.0,3671.8,3670.9,0.00166773]
[1754007154387,0.819248,3671.3,3670.9,0.00166773]
[1754007154685,30.03404881,3671.2,3670.9,0.00166773]
[1754007154887,33.0,3671.0,3670.9,0.00166773]
[1754007155421,33.0,3671.0,3670.5,0.00166737]
[1754007155422,3.0,3670.9,3670.5,0.00166737]
[1754007155625,33.0,3670.6,3668.4,1.3335]
[1754007155826,0.03405252,3670.8,3667.9,1.3335]
[1754007155827,3.0,3670.2,3667.9,1.3335]
[1754007156127,3.0,3670.2,3667.7,0.07451791]
[1754007156128,3.0,3670.0,3668.1,1.7679]
[1754007156354,3.0,3669.8,3668.2,1.3335]
[1754007156617,6.005,3669.9,3668.2,1.7679]
[1754007156994,6.005,3669.9,3668.3,1.3335]
[1754007157195,0.819438,3669.8,3668.3,1.3335]
[1754007157654,0.819438,3669.8,3668.1,0.4344]
[1754007157815,0.4635,3669.7,3668.3,7.0]
[1754007158120,6.002,3669.6,3668.3,7.0]
[1754007158327,6.821438,3669.8,3668.4,1.7679]
[1754007158499,0.819438,3669.8,3668.5,1.3335]
[1754007158701,0.819438,3669.8,3668.7,0.136]
[1754007158905,0.03406272,3669.7,3668.8,1.3335]
[1754007159232,0.03406272,3669.7,3668.4,0.55]
[1754007159405,0.4635,3669.8,3668.4,1.8835]
[1754007159601,0.4635,3669.8,3668.3,7.0]
[1754007159602,0.4635,3670.5,3668.6,0.55]
[1754007159826,0.03405623,3670.4,3668.8,0.55]
[1754007160127,30.0,3670.3,3668.8,0.55]
[1754007160302,30.0,3670.1,3668.8,0.55]
[1754007160624,6.4485,3670.5,3669.0,0.55]
[1754007160625,5.976,3670.3,3669.0,0.55]
[1754007160926,30.03405808,3670.2,3668.8,0.55]
[1754007161087,30.0,3670.2,3668.8,0.55]
[1754007161292,0.4635,3670.1,3668.8,0.55]
[1754007161841,3.18823854,3670.1,3668.8,0.55]
[1754007162024,30.0,3669.9,3668.8,0.55]
[1754007162372,0.00167682,3670.2,3668.8,0.55]
[1754007162588,0.00167682,3670.2,3669.0,0.55]
[1754007163068,0.00167682,3670.2,3668.9,1.3335]
[1754007163237,0.00167682,3670.2,3669.0,0.55]
[1754007163446,30.0,3670.1,3669.0,0.55]
[1754007164167,30.0,3669.9,3669.0,0.55]
[1754007164676,5.933,3670.3,3669.2,0.55]
[1754007164958,30.03405808,3670.2,3669.3,1.3335]
[1754007165124,0.00167682,3670.0,3668.8,1.3335]
[1754007165531,0.00167682,3670.0,3668.9,0.55]
[1754007165957,30.0,3669.9,3668.9,0.55]
[1754007166158,0.00167682,3670.0,3668.9,0.55]
[1754007166159,0.00167682,3670.0,3669.1,0.55]
[1754007167153,0.00167682,3670.0,3669.3,0.55]
[1754007167462,0.00167682,3670.0,3669.2,0.55]
[1754007167629,0.00167682,3670.0,3669.4,0.55]
[1754007167833,30.0,3671.2,3669.4,0.55]
[1754007168133,0.03404973,3671.1,3669.5,8.4953]
[1754007168466,0.03404973,3671.1,3669.7,0.55]
[1754007168629,3.18507188,3671.4,3669.9,0.55]
[1754007168630,30.0,3671.2,3669.9,0.55]
[1754007168832,0.136,3670.5,3670.0,0.136]
[1754007169058,0.136,3670.5,3670.1,1.6177]
[1754007169237,0.819009,3672.1,3670.3,0.55]
[1754007169238,30.0,3671.8,3670.3,0.55]
[1754007169569,0.136,3670.9,3670.4,1.6177]
[1754007169862,0.136,3670.9,3670.5,2.0453]
[1754007170063,0.136,3670.9,3669.5,8.6251582]
[1754007170064,536.28779615,3670.0,3669.5,8.62510088]
[1754007170275,536.28779615,3670.0,3669.6,5.874]
[1754007170495,536.28779615,3670.0,3669.9,0.136]
[1754007172054,536.28779615,3670.0,3669.9,1.7537]
[1754007172256,536.28779615,3670.0,3669.9,7.6097]
[1754007172456,536.28779615,3670.0,3669.9,8.5359]
[1754007172671,518.74821314,3670.0,3669.9,11.26076988]
[1754007172853,505.72308134,3670.0,3669.9,11.26076988]
[1754007173039,500.61589487,3670.0,3669.9,11.26076988]
[1754007173253,500.5584329,3670.0,3669.9,11.26076988]
[1754007173468,490.69688279,3670.0,3669.9,11.26076988]
[1754007173798,490.69688279,3670.0,3669.9,5.02856988]
[1754007173947,490.69688279,3670.0,3669.9,10.86456988]
[1754007174135,487.32925099,3670.0,3669.9,10.86456988]
[1754007174458,487.32925099,3670.0,3669.9,5.02856988]
[1754007174636,487.32925099,3670.0,3669.9,10.85956988]
[1754007174963,487.32925099,3670.0,3669.9,8.1347]
[1754007175185,487.32925099,3670.0,3669.9,2.3037]
[1754007175339,487.32925099,3670.0,3669.9,8.1347]
[1754007175737,487.32925099,3670.0,3669.9,1.7537]
[1754007175941,487.32925099,3670.0,3669.9,7.5697]
[1754007176220,487.32925099,3670.0,3669.9,0.136]
[1754007176338,487.32925099,3670.0,3669.9,1.7537]
[1754007176969,487.32925099,3670.0,3669.9,5.94]
[1754007177367,487.32925099,3670.0,3669.9,0.136]
[1754007177772,487.32925099,3670.0,3669.9,5.929]
[1754007178076,487.32925099,3670.0,3669.9,0.136]
[1754007178275,487.32925099,3670.0,3669.9,5.926]
[1754007179167,487.32925099,3670.0,3669.9,7.5437]
[1754007179563,487.32925099,3670.0,3669.9,5.911]
[1754007180063,487.8210873,3670.0,3669.9,5.911]
[1754007180606,487.8210873,3670.0,3669.6,5.772]
[1754007180807,0.49183631,3669.9,3669.7,1.6177]
[1754007181099,0.24614228,3669.8,3669.2,1.6177]
[1754007181251,487.32925099,3670.0,3669.8,0.136]
[1754007181564,487.32925099,3670.0,3669.9,5.751]
[1754007182017,487.32925099,3670.0,3669.9,10.09356988]
[1754007182154,473.69352738,3670.0,3669.9,10.64242726]
[1754007182360,473.69352738,3670.0,3669.9,5.02856988]
[1754007182671,473.69352738,3670.0,3669.9,10.77056988]
[1754007183185,473.69352738,3670.0,3669.9,2.3037]
[1754007183367,473.69352738,3670.0,3669.9,4.47856988]
[1754007183572,473.69352738,3670.0,3669.9,10.21756988]
[1754007184093,473.69352738,3670.0,3669.9,7.4927]
[1754007184394,472.18701966,3670.0,3669.9,7.4857]
[1754007184698,472.18701966,3670.0,3669.9,10.21056988]
[1754007185192,472.43318129,3670.0,3669.9,10.76056988]
[1754007185490,472.43318129,3670.0,3669.9,0.136]
[1754007185694,472.67926723,3670.0,3669.9,0.136]
[1754007185997,474.75636723,3670.0,3669.9,0.136]
[1754007186161,474.75636723,3670.0,3668.4,6.548]
[1754007186497,2.56934757,3669.9,3668.5,5.717]
[1754007186690,0.136,3669.6,3669.1,0.136]
[1754007186890,2.0771,3669.9,3669.2,5.718]
[1754007187187,2.2131,3669.9,3669.3,5.849]
[1754007187359,2.0771,3669.9,3669.6,0.136]
[1754007187556,2.0771,3669.8,3669.6,0.136]
[1754007187759,0.49188221,3669.7,3669.6,0.136]
[1754007187959,2.56898221,3669.7,3669.6,0.136]
[1754007188166,2.70498221,3669.7,3669.2,5.709]
[1754007188373,2.56898221,3669.6,3669.2,5.709]
[1754007188598,0.49188221,3669.5,3669.3,1.7537]
[1754007188781,472.18701966,3670.0,3669.3,2.72531545]
[1754007188782,0.49188221,3669.4,3669.3,2.72531545]
[1754007188982,0.24594137,3669.4,3669.3,9.10841545]
[1754007189184,472.18701966,3670.0,3669.9,2.72486988]
[1754007189386,472.4328255,3670.0,3669.9,0.136]
[1754007189590,472.8941255,3670.0,3669.9,0.136]
[1754007189785,472.8941255,3670.0,3667.0,0.025]
[1754007189786,474.5099255,3670.0,3668.5,5.7]
[1754007189988,8.02290584,3669.9,3668.0,11.77319251]
[1754007190164,2.32290584,3669.8,3668.1,5.699]
[1754007190371,0.24580584,3669.7,3668.1,8.42520445]
[1754007190574,0.24580584,3669.6,3668.2,1.7538]
[1754007190767,472.18701966,3670.0,3668.3,0.55]
[1754007190768,0.24580584,3669.5,3668.3,0.55]
[1754007190977,0.24580584,3669.4,3668.5,0.55]
[1754007191178,0.24580584,3669.3,3668.8,0.55]
[1754007191377,472.18701966,3670.0,3669.1,3.27546401]
[1754007191378,0.24580584,3669.2,3669.1,3.27546401]
[1754007191602,0.24580584,3669.2,3669.1,5.02926401]
[1754007192004,0.24580584,3669.2,3668.7,1.6177]
[1754007192205,0.24580584,3669.1,3668.8,5.681]
[1754007192503,0.70735044,3669.0,3668.9,5.68]
[1754007192705,0.70735044,3669.0,3668.1,1.6177]
[1754007192889,0.24605044,3668.9,3668.2,6.227]
[1754007193072,0.24605044,3668.8,3668.3,5.674]
[1754007193272,0.24605044,3668.7,3668.1,1.6177]
[1754007193571,0.24605044,3668.6,3668.2,5.671]
[1754007193890,472.18701966,3670.0,3668.4,0.55]
[1754007194107,472.18701966,3670.0,3668.5,1.6177]
[1754007194302,472.18701966,3670.0,3668.7,3.0]
[1754007194476,472.18701966,3670.0,3668.8,1.26282527]
[1754007194819,2.11116087,3669.9,3668.5,5.671]
[1754007195028,2.0771,3669.8,3668.0,10.15549251]
[1754007195303,2.0771,3669.7,3668.1,5.67]
[1754007195509,2.0771,3669.6,3668.1,5.67]
[1754007195712,2.0771,3669.5,3668.1,5.67]
[1754007195881,0.4613,3669.5,3668.1,5.67]
[1754007196081,473.80281966,3670.0,3668.8,2.72567345]
[1754007196291,473.80281966,3670.0,3668.3,0.55]
[1754007196627,473.80281966,3670.0,3668.8,2.72566306]
[1754007196826,473.80281966,3670.0,3668.5,3.55]
[1754007197125,0.4725,3669.9,3668.6,5.654]
[1754007198675,2.3566,3669.9,3668.4,1.9655]
[1754007198877,472.18701966,3670.0,3668.5,5.634]
[1754007199083,0.03406087,3669.9,3668.4,1.9655]
[1754007199282,472.18701966,3670.0,3668.5,5.63]
[1754007199731,472.18701966,3670.0,3668.6,4.69126332]
[1754007199895,0.136,3669.8,3669.3,0.136]
[1754007200080,2.72483276,3669.8,3669.1,5.626]
[1754007200280,2.72483276,3669.8,3669.2,2.72538973]
[1754007200503,2.72483276,3669.8,3669.0,1.9655]
[1754007200704,2.72483276,3669.8,3669.6,0.136]
[1754007200906,2.72483276,3669.8,3669.4,5.62]
[1754007201224,2.72483276,3669.8,3669.2,5.614]
[1754007201225,5.3277609,3669.7,3669.2,5.614]
[1754007201392,2.60292814,3669.6,3669.1,0.136]
[1754007201734,0.24632814,3669.5,3669.1,0.136]
[1754007202039,2.3566,3669.6,3669.1,0.136]
[1754007202040,0.71882814,3669.4,3669.1,0.136]
[1754007202238,0.24632814,3669.3,3668.8,5.604]
[1754007202396,0.24632814,3669.2,3668.9,0.136]
[1754007202596,0.24632814,3669.1,3668.9,0.136]
[1754007202807,0.24632814,3669.0,3668.6,5.598]
[1754007202991,1.8841,3669.2,3668.7,0.136]
[1754007202992,0.71882814,3668.9,3668.7,0.136]
[1754007203190,0.24632814,3668.8,3668.7,0.136]
[1754007203738,0.24632814,3668.8,3668.6,5.598]
[1754007203912,0.24632814,3668.7,3668.6,5.598]
[1754007204433,0.24632814,3668.7,3668.5,0.136]
[1754007204633,0.24644497,3668.6,3668.5,0.136]
[1754007204799,0.24645312,3668.6,3668.2,5.576]
[1754007205000,0.24645312,3668.5,3668.2,5.576]
[1754007205323,0.24645312,3668.4,3668.2,5.576]
[1754007205628,0.71895312,3668.3,3668.1,5.573]
[1754007205832,0.50675843,3668.2,3668.1,5.573]
[1754007205984,0.75329302,3668.2,3668.1,5.703]
[1754007206182,0.96548771,3668.2,3668.1,0.136]
[1754007206413,0.49298771,3668.2,3668.1,5.561]
[1754007206644,0.49298771,3668.2,3668.0,10.29149251]
[1754007206844,0.49298771,3668.1,3668.0,10.15549251]
[1754007207058,1.10148771,3668.1,3668.0,10.15549251]
[1754007207258,3.28414648,3668.1,3668.0,10.15549251]
[1754007208237,3.28414648,3668.1,3668.0,6.65387479]
[1754007208468,0.03407015,3668.9,3668.0,6.65387479]
[1754007208469,0.4725,3668.8,3668.0,6.65387479]
[1754007208771,0.136,3668.7,3668.0,8.61937479]
[1754007208950,0.136,3669.5,3668.9,0.136]
[1754007209123,0.136,3669.5,3668.0,6.65387479]
[1754007209124,0.4725,3669.5,3668.0,6.65387479]
[1754007209328,1.91816551,3669.4,3668.0,6.65387479]
[1754007209559,30.0,3669.2,3668.0,6.65387479]
[1754007209738,0.01364,3668.1,3668.0,6.65387479]
[1754007209937,32.37024,3668.1,3668.0,6.65387479]
[1754007210137,35.09644702,3668.1,3668.0,6.20997479]
[1754007210392,35.37024,3668.1,3668.0,6.20997479]
[1754007210691,2.72643001,3667.8,3667.7,0.07451791]
[1754007210857,14.17951038,3667.8,3667.7,0.07451791]
[1754007211058,46.68538514,3667.8,3667.7,0.07451791]
[1754007211262,2.72695045,3667.1,3667.0,0.025]
[1754007211590,36.40737784,3667.1,3667.0,0.025]
[1754007211911,41.86642829,3667.1,3667.0,0.025]
[1754007212113,47.44942829,3667.1,3667.0,0.025]
[1754007212261,36.13947108,3666.4,3666.3,0.004]
[1754007212456,41.445,3666.4,3666.3,0.004]
[1754007212708,49.084026,3666.4,3666.3,0.004]
[1754007212993,48.529026,3666.4,3666.3,0.004]
[1754007213307,2.862,3666.2,3666.1,9.25000001]
[1754007213461,5.862,3666.2,3666.1,9.25000001]
[1754007213663,44.1701,3666.2,3666.1,9.25000001]
[1754007214123,40.76893276,3666.2,3666.1,9.25000001]
[1754007214261,46.34093276,3666.2,3666.1,9.25000001]
[1754007214595,44.02893276,3666.2,3666.1,9.25000001]
[1754007214905,37.90693276,3666.2,3666.1,9.25000001]
[1754007215104,7.60893276,3666.2,3666.1,9.25000001]
[1754007215310,40.4591,3666.2,3666.1,9.25000001]
[1754007215612,40.4591,3666.2,3666.1,5.04638764]
[1754007215613,10.4561,3666.2,3666.1,5.04638764]
[1754007215763,40.4561,3666.2,3666.1,5.04638764]
[1754007215963,10.4561,3666.2,3666.1,5.04638764]
[1754007216211,6.552,3666.8,3666.1,5.04638764]
[1754007216212,1.8841,3666.7,3666.1,5.04638764]
[1754007216409,6.43261,3666.6,3666.1,5.04638764]
[1754007216700,2.72659015,3667.6,3666.1,5.04638764]
[1754007216701,1.8841,3667.8,3666.2,2.419]
[1754007216860,5.579,3667.8,3666.3,5.58]
[1754007217066,1.8841,3668.5,3666.4,2.419]
[1754007217395,5.578,3668.4,3666.4,2.419]
[1754007217577,5.578,3668.4,3666.5,0.4535]
[1754007217901,2.1821,3668.9,3666.6,1.9655]
[1754007218103,1.8841,3669.3,3666.7,0.2419]
[1754007218302,1.8841,3669.3,3666.8,5.14610203]
[1754007218470,5.571,3669.5,3667.5,2.72663815]
[1754007218789,6.555,3669.7,3667.6,7.985]
[1754007218790,5.564,3669.7,3667.6,7.985]
[1754007218989,30.0,3669.9,3667.8,2.72643001]
[1754007219189,0.136,3669.1,3668.6,0.136]
[1754007219389,0.136,3669.1,3668.7,2.419]
[1754007219570,0.136,3669.1,3668.7,7.978]
[1754007219767,0.03406922,3669.0,3668.4,0.136]
[1754007220026,2.72483276,3669.8,3668.5,5.559]
[1754007220027,0.136,3668.8,3668.5,5.559]
[1754007220232,0.136,3668.8,3668.5,5.554]
[1754007220526,0.24756932,3668.7,3668.3,0.136]
[1754007220671,0.24756932,3668.6,3668.3,0.4535]
[1754007220866,0.24756932,3668.5,3668.4,2.419]
[1754007221403,0.24756932,3668.5,3668.4,7.972]
[1754007221702,0.24756932,3668.5,3667.5,14.523]
[1754007222009,0.28164412,3668.4,3667.5,5.551]
[1754007222307,0.73673016,3668.3,3667.5,5.551]
[1754007222490,0.24756932,3668.2,3667.5,5.551]
[1754007222812,0.24756932,3668.2,3665.5,2.72813526]
[1754007222813,30.0,3668.0,3666.5,1.9655]
[1754007223003,0.24756932,3667.9,3666.5,1.9655]
[1754007223206,472.18701966,3667.0,3666.6,0.4535]
[1754007223391,472.18701966,3667.0,3666.7,7.964]
[1754007223598,472.18701966,3667.0,3666.8,2.419]
[1754007223780,472.18701966,3667.0,3666.9,2.419]
[1754007223986,471.71201966,3667.0,3666.9,7.958]
[1754007224218,470.62141812,3667.0,3666.9,10.68509918]
[1754007224515,470.02744499,3667.0,3666.9,10.68509918]
[1754007224682,462.20722995,3667.0,3666.9,10.68509918]
[1754007224887,462.20722995,3667.0,3666.9,12.5763333]
[1754007224888,428.43676698,3667.0,3666.9,12.5763333]
[1754007225087,403.83648915,3667.0,3666.9,15.5763333]
[1754007225482,370.40914254,3667.0,3666.9,10.0373333]
[1754007225705,356.1600554,3667.0,3666.9,10.0373333]
[1754007225892,356.1600554,3667.0,3666.9,15.5593333]
[1754007226787,341.91096826,3667.0,3666.9,15.5593333]
[1754007226976,251.14061147,3667.0,3666.9,15.5593333]
[1754007227173,187.3377112,3667.0,3666.9,15.5593333]
[1754007227373,187.30989921,3667.0,3666.9,15.5593333]
[1754007227579,187.28867928,3667.0,3666.9,10.0373333]
[1754007227874,175.06833437,3667.0,3666.9,15.5403333]
[1754007228219,81.43880951,3667.0,3666.9,14.19909918]
[1754007228513,68.32798685,3667.0,3666.9,14.19909918]
[1754007228714,68.32798685,3667.0,3666.9,8.69609918]
[1754007229021,68.32798685,3667.0,3666.9,20.74509918]
[1754007229176,68.32798685,3667.0,3666.9,8.972]
[1754007229518,68.32798685,3667.0,3666.9,12.047]
[1754007229680,68.32798685,3667.0,3666.9,14.392]
[1754007230137,68.32798685,3667.0,3666.9,13.9422]
[1754007230330,68.32798685,3667.0,3666.9,6.553]
[1754007230515,68.32798685,3667.0,3666.9,12.04]
[1754007230681,68.32798685,3667.0,3666.9,12.176]
[1754007230988,68.32798685,3667.0,3666.9,14.385]
[1754007232313,68.32798685,3667.0,3666.9,13.9352]
[1754007232531,68.32798685,3667.0,3666.9,8.4482]
[1754007232827,68.32798685,3667.0,3666.9,13.9192]
[1754007233037,68.32798685,3667.0,3666.9,14.369]
[1754007234906,68.32798685,3667.0,3666.9,17.09609918]
[1754007235419,62.86613245,3667.0,3666.9,17.09609918]
[1754007235724,62.86613245,3667.0,3666.9,8.898]
[1754007235909,57.40427805,3667.0,3666.9,8.898]
[1754007236111,57.40427805,3667.0,3666.9,11.999]
[1754007236112,51.94242365,3667.0,3666.9,11.999]
[1754007236510,51.94242365,3667.0,3666.9,14.344]
[1754007237091,51.94242365,3667.0,3666.9,8.898]
[1754007237396,51.94242365,3667.0,3666.9,14.336]
[1754007237616,54.40672906,3667.0,3666.9,6.553]
[1754007237926,56.80682906,3667.0,3666.9,12.0]
[1754007238421,56.80682906,3667.0,3666.6,5.446]
[1754007238623,2.43418873,3666.9,3666.6,5.446]
[1754007238824,2.42956371,3666.8,3666.6,5.446]
[1754007239191,2.4001,3666.7,3666.6,5.446]
[1754007239610,0.55,3666.6,3666.3,5.431]
[1754007239815,3.4464,3666.6,3666.3,5.431]
[1754007240022,6.73306637,3666.5,3666.4,5.441]
[1754007240529,6.18306637,3666.5,3666.3,5.44]
[1754007240732,2.72761987,3666.2,3666.1,0.11827471]